{"text_format":"1","workbook":"xlsx","n_sheets":10,"sheets":["ТЗ","Предупреждение!","1. Данные","2. Создание","3. Таблица","4. Форма ПК","5. Форма прихода ТМЦ на ШО","6. Форма расхода ТМЦ из ШО","7. Форма акта о списании с ШО","8. Форма акта о приходе на ШО"],"not_rendered":{"charts":0,"images":0,"macros":1,"external_links":0,"defined_names":1,"comments":0,"pivot_tables":0},"unopened":[],"bounds":{"document_bytes":16777216,"sheet_cells":100000,"rows_first":2000,"rows_last":500,"rows_between":2000,"halvings":0,"cell_chars":16384,"cell_head_chars":4096},"cells_cut":0,"cells_raw":0,"read":"whole","date_system":"1900"}

{"sheet":"ТЗ","index":0,"n_rows":32,"n_cols":3,"rows_kept":32,"cut":false,"hidden":false,"merged":[]}
["Что нужно:"]
["1. Доступ по логину (ФИО) и паролю с разграничением уровня доступа "]
[null,"1.1 Аналогично файлу \"Tips_Macro_UsersRulesOnStart\" (файл с макросами скину)"]
[null,"1.2 Данные берутся из таблички на листе \"1. Данные\", умная таблица \"Уровень_доступа_с_паролями\". В ней же можно добавлять пользователей и менять уровни доступа. Admin имеет доступ ко всему, всегда."]
[null,"1.3 Если при стартовом входе, когда файл попросит авторизоваться, нажать \"отмена\", файл должен закрыться без сохранения"]
[null,"1.4 При самом первом старте, если макросы не включены, должен выскочить лист \"Предупреждение!\", аналогично файлу их примера."]
[null,"1.5 Если человек авторизовался под своим логином, то его ФИО автомически прописывается во всех документах (формах). Можно организовать получение данных ФИО при входе в отдельную ячейку на листе \"1. Данные\", а уже оттуда автоматически будет подтягиваться ФИО."]
[null,"1.6 Если в умной таблице \"Уровень_доступа_с_паролями\", прописаны листы для пользователей, то эти листы отображаются. Если с этих листов идет обращение (через кнопки) на другие листы, то они открываются, но после перехода с этих открытых листов на предыдущие, они автоматически дожны закрыться."]
["2. На листе \"1. Данные\" создаются все необходимые списки, условия, фильтры, таблицы, необходимые для дальнейшего подтягивания их в необходимые документы."]
["3. Организация создания номенклатуры по кнопке (с помощью марокса), сравнения ее с действующим списком, и, если номенклатура новая, запрашивать ее добавление в список (лист \"2. Создание\")."]
[null,"3.1 Пользователь, имеющий доступ к этому листу, создает номенклатура (синяя табличка, выбор через списки, могу настроить списки сам). В зеленой таблице ниже показывается вид готовой номенклатуры (с помощью формул)."]
[null,"3.2 Кнопкой \"добавить\" дожна выполнять следующую команду: удалить пустые строки в умной таблице \"Список_номенклатуры\" по условию пустой ячеки в колонке \"Список номенклатуры\" - сравнить ячейку C4 на листе \"2. Создание\" с ячейками колонки \"Список номенклатуры\": если данной номенклатуры нет, предложить добавить ее через да/нет - если ответ \"да\", тогда она добавляется к последн строчке умной таблицы и добавляются ячейка A4 к колнке \"Категория материалов\" и ячейка B4 к колонке \"Подкатегория материалов\" (то есть привязка идет построчно)."]
[null,"3.3 Далее вижу два варианта. Суть - необходимо выбрать необходимую номенклатуру из колонки \"Список номенклатуры\" (лучше в виде отдельной формы), и добавить ее на лист \"3. Таблицы\" с массой \"пусто\" (не ноль). Номенклатура должна добавиться в таблице под соответствующую категорию и подкатегорию (это вообще возможно?). Вариант 1 - или каким-нибудь образом реализовать это мароксами. Вариант 2 - сделать таблицу так, чтобы она была списком, но была визуальна видна категория и подкатегория."]
["4. Лист \"3. Таблица\": заблокированы все, кроме выбора списка. Организация выбора необходимой номенклатуры с простановкой массы при выборе документа. Список можно заменить на кнопки (по цветам: приход  - зеленые со знаком +; расход - красные со знаком -)."]
[null,"4.1 Пользователь выбирает необходимый документ - открывается желтая колонка (изначально, она не доступна), в которую он может вбивать массу (если выбирается документ о приходе материалов - числа зеленые, если о расходе - цифры красные); уточнение - если пользователь сменил выбор документа, то числа обнуляются (то есть вбивать заново нужно, хотя соглашусь, если это покажется неудобным, но цвет цир тогда должен меняться в зависимости от выбора документа. Нужно учесть, что документы могут добавиться, тогда нужно как-то прописать условие, при каком списке они красные, а при каком - зеленые)."]
[null,"4.2 Колонка \"m наличия, кг.\" заблокирована на изменение для всех, кроме admin (можно защитой ячеек по паролю, например). Но, когда выбирается документ, открывается колонка \"m назначения, кг.\", то в ней прописывается масса, которая планируется прибавиться или убавиться в зависимости от документа (цвета чисел) по той номенклатуре, напротив которой и простяавялется масса."]
[null,"4.3 Когда пользователь все выбрал, он нажимает кнопку \"Создать документ\" и переходится на соответствующую форму (каждая форма - это отдельный лист). А в форме уже автоматически дожны подтягиваться только те номенклатуры с массами, которые >0 заполнялись в колонке \"m назначение, кг.\"."]
[null,"4.4. В формах создать кнопку \"Печать\" (лучше в виде значка, красного, посередине\"). При ее нажатии масса автоматически спишется или прибавится (в зависимости от дукмента, цвета чисел) к колонке \"m наличия, кг.\", файл сохранится, документ напечатается (если это ПК - в 1 экземпляре, все остальные формы - в 2-х экземплярах не двусторонней печатью) и документ, который отправился на печать, автоматически сохранится в папку \"Документы\" (лучше всего разграничить документы по отдельным папкам: ПК, Накладные, Акты) в виде картинки с именем \"ПК/Акт о приходе/Акт о расходе/Накладная о приходе/Накладная о расходе № #подтягивает номер с документа# от #дата печати/сохранения#\". После печати, пользователя перебрасывает на лист \"3. Таблица\". Все остальные листы автоматически скрываются."]
[null,null,"4.4.1 Если пользователь выбрал форму ПК, то автоматически при нажатии кнопки \"Печать\" печатается 1 копия ПК (я уточню, может быть необходимо будет все же 2) и 2 копии Накладной о расходе (где отправитель УЛПСиС Ш/О, а получатель УЛПСиС - может быть необходимо создать отдельную форму для этой операции, чтобы не перегужать форму \"Накладная о расходе\"). "]
[null,null,"4.4.2 При сохранении ПК, тогда также должна сохраняться и накладная в виде фото. Папка для сохранения должна автоматически создаваться (если ее нет) в той папке, где находится будет сам данный файл (может быть ввести параметризацию пути данного файла, а потом подцеплять новую папку в виде ссылки для создания)."]
[null,null,"4.4.3 В идеале, необходимо вести журнал изменений, после каждого изменения - это касается изменение / добавление новой номенклатуры и изменения \"m наличия, кг.\" с указанием даты, ФИО, формы документа, номенклатуры и кг. Для этого файла лучше создать отдельную йчейку пути его места сохранения (он может постоянно меняться). TXT формата будет достаточно, путем добавления изменений в существующий файл. Если есть возможность, вести 2 log файла: первый - txt: все изменения, без каких-либо обработок (на случай, если кто-то грохнет файл, чтобы можно было разобраться кто и когда это сделал); второй - для фиксации добавления номенклатуры и списания / прихода материалов в кг."]
[null,null,"4.4.4 В формах выделены красным ячейки, которые должен заполнить пользователь. Если они не заполнены, то должно выходить сообщение о том, чтобы все данные были заполнены. И не давать печатать документ."]
[null,null,"4.4.5 Во всех формах нужна еще одна кнопка \"Назад\", если пользователь ошибся. Кнопка возвращает на лист \"3. Таблица\"."]
[null,null,"4.4.5 Счетчики: желательно сделать их автоматическими вида \"АС-номер в виде 6 цифр\" (акт о списании №). Начальный номер можно было задавать вручную (например, привязка к ячейке). Мысль следующая: при нажатии на кнопку \"Печать\" - текущий номер печатается, а следующий - автоматически прописывается в соответствующую ячейку (на листе \"1. Данные\"), потом история повторяется. Нужно учесть один момент: при печати ПК автоматически должна печататься накладная о передаче, то есть для такой накладной, наверное, придется делать отдельную форму и отдельным счетчиком. "]
[null,"4.5 Если после нажатия на нопку \"Печать\" на любой из форм, масса в колонке \"m наличия, кг.\" будет равна 0, то номенклатура удаляется со сдвигом ячеек вверх (она может иметь минусовое значение, а может плюсовое, но если 0, то удаляется строка с номенклатурой, но не удаляется номенклатура из \"Список номенклатуры\"). Можно рассмотреть удаление по кнопке, но нужно всеже автоматически. При этом, номенклатуру можно будет добавить, путем ее добавления, описанным в п.3.3."]
["Допольнительно:"]
["1. Многое, если не все, будет решаться мароксами. Иногда нужно будет что-то добавить, подправить какой-нибудь лист, ячейку. Прошу код маркоса комментировать и обозначать где можно изменять параметры ячеек (с небольшим комментарием о дествии кода)."]
["2. Файл будет работать в однопользовательском режиме."]
["3. Думаю, после создания всего описанного, понадобиться время на тест, и устранение или доработка каких-то функций (незначительных), прошу это учесть."]
["4. Если нужны дополнительные надстройки для работы файла, то прошу сообщить какие."]
["5. Файл дожен работать на версии Office 2010."]
["6. Если Вы знаете варианты лучшей реализации, готов обсудить."]

{"sheet":"Предупреждение!","index":1,"n_rows":2,"n_cols":1,"rows_kept":2,"cut":false,"hidden":false,"merged":[[0,0,0,9],[1,0,1,9]]}
["Для работы с файлом требуется разрешить макросы!"]
[" Excel 2010: Файл - Параметры Excel - Центр управления безопасностью - Параметры"]

{"sheet":"1. Данные","index":2,"n_rows":15,"n_cols":23,"rows_kept":15,"cut":false,"hidden":false,"merged":[]}
["№","Марки","НТД",null,"№","Отбор",null,"Категория материала",null,"Подкатегория материала",null,"Тип материала",null,"Вид состояния",null,"Склады",null,"Пользователь","Пароль","Листы для работы","Права доступа",null,"Формы документов"]
[1,"06ХН28МДТ (ЭИ943)","ГОСТ 5632-2014",null,1,"Лигатура алюминиево-бариевая (10,5% Ba)",null,"Основной материал",null,"Материалы",null,"ШБ",null,"Порошок",null,"УЛПСиС",null,"Admin",1,"1. Данные;2. Создание;3. Таблица;4. Форма ПК;5. Форма прихода ТМЦ на ШО;6. Форма ухода ТМЦ из ШО;7. Форма акта о списании с ШО;8. Форма акта о приходе на ШО","Admin",null,"Акт о приходе на шихтовое отделение"]
[null,null,null,null,null,null,null,"Вспомогательный материал",null,"Ферросплавы",null,"ШЗ",null,"Скрап",null,"УЛПСиС М/О",null,"Петров И. И.",2,"2. Создание;3. Таблица","Уровень 1",null,"Акт о списании с шихтового отделения"]
[null,null,null,null,null,null,null,null,null,null,null,null,null,"Кусок",null,"УЛПСиС Ш/О",null,"Иванов И. И.",3,"3. Таблица","Уровень 2",null,"Выпуск карты плавки"]
[null,null,null,null,null,null,null,null,null,null,null,null,null,"Пластина",null,"ВИП",null,"Сидоров И. И.",4,"3. Таблица","Уровень 2",null,"Накладная о приходе ТМЦ в шихтовое отделение"]
[null,null,null,null,null,null,null,null,null,null,null,null,null,"Стружка",null,"ЭШП",null,null,null,null,null,null,"Накладная о расходе ТМЦ из шихтового отделения"]
[null,null,null,null,null,null,null,null,null,null,null,null,null,"Стружка мелкая",null,"УГП"]
[null,null,null,null,null,null,null,null,null,null,null,null,null,null,null,"УКМ"]
[null,null,null,null,null,null,null,null,null,null,null,null,null,null,null,"УВ"]
[null,null,null,null,null,null,null,null,null,null,null,null,null,null,null,"УТВ"]
[null,null,null,null,null,null,null,null,null,null,null,null,null,null,null,"СПФ"]
[null,null,null,null,null,null,null,null,null,null,null,null,null,null,null,"СГП"]
[null,null,null,null,null,null,null,null,null,null,null,null,null,null,null,"СГИ"]
[null,null,null,null,null,null,null,null,null,null,null,null,null,null,null,"ОМТС"]
[null,null,null,null,null,null,null,null,null,null,null,null,null,null,null,"СОДХ"]

{"sheet":"2. Создание","index":3,"n_rows":10,"n_cols":12,"rows_kept":10,"cut":false,"hidden":false,"merged":[[2,0,2,7],[3,2,3,7]]}
["Категория материалов","Подкатегория материалов","Тип отходов","Тип материала","Марка сплава","Вид состояния","№ партии / № плавки","Дополнительное примечание",null,"Категория материалов","Подкатегория материалов","Список номенклатуры"]
["Основной материала","О1","Смешанные отходы","ШЗ","Чугун","Слиток",1111,null,null,"Основной материала","О1","Смешанные отходы_ШЗ_Чугун_Слиток"]
["Номенклатура",null,null,null,null,null,null,null,null,"Основной материала","О1","Смешанные отходы_ШЗ_Чугун_Стружка мелкая"]
[{"$f":"A2","v":"Основной материала"},{"$f":"B2","v":"О1"},{"$f":"LEFT(CONCATENATE(IF(C2=\"\",\"\",C2&\"_\"),IF(D2=\"\",\"\",D2&\"_\"),IF(E2=\"\",\"\",E2&\"_\"),IF(F2=\"\",\"\",F2&\"_\"),IF(G2=\"\",\"\",G2&\"_\"),IF(H2=\"\",\"\",H2&\"_\")),LEN(CONCATENATE(IF(C2=\"\",\"\",C2&\"_\"),IF(D2=\"\",\"\",D2&\"_\"),IF(E2=\"\",\"\",E2&\"_\"),IF(F2=\"\",\"\",F2&\"_\"),IF(G2=\"\",\"\",G2&\"_\"),IF(H2=\"\",\"\",H2&\"_\")))-1)","v":"Смешанные отходы_ШЗ_Чугун_Слиток_1111"}]
[null,null,null,null,null,null,null,null,null,"Вспомогательный материал","В1","Клей"]
[null,null,null,null,null,null,null,null,null,"Вспомогательный материал","В2","Лента"]
[null,null,null,null,null,null,null,null,null,"Вспомогательный материал","В3","Стяжка"]
[null,null,null,null,null,null,null,null,null,"Основной материала","О1"]
[]
[null,null,null,null,null,null,null,null,null,"Основной материала","О2","Смешанные отходы_ШЗ_Чугун_Стружка"]

{"sheet":"3. Таблица","index":4,"n_rows":18,"n_cols":3,"rows_kept":18,"cut":false,"hidden":false,"merged":[[0,0,0,2],[1,0,1,2]]}
["Какой документ создаем?"]
[]
[]
[]
["Основные материалы","m наличия, кг","m назначения, кг."]
["О1"]
["Смешанные отходы_ШЗ_Чугун_Слиток",1000]
["Смешанные отходы_ШЗ_Чугун_Стружка мелкая",1000]
[null,1000]
["О2"]
["Смешанные отходы_ШЗ_Чугун_Стружка",1000]
["Вспомогательные материалы"]
["В1"]
["Клей",10]
["В2"]
["Лента",10]
["В3"]
["Стяжка",10]

{"sheet":"4. Форма ПК","index":5,"n_rows":37,"n_cols":9,"rows_kept":37,"cut":false,"hidden":false,"merged":[[30,5,30,6],[24,4,25,8],[21,3,25,3],[11,3,20,3],[11,4,12,4],[34,5,34,8],[32,4,32,8],[33,5,33,8],[31,0,32,0],[31,3,32,3],[1,0,1,1],[2,0,2,1],[4,0,4,1],[31,1,32,1],[26,3,27,3],[3,0,3,2],[4,3,10,3],[5,0,5,1],[6,0,6,1],[12,0,12,1],[27,8,28,8],[29,5,29,7],[27,5,28,7],[15,4,15,8],[11,5,12,5],[11,6,12,6],[11,7,12,7],[11,8,12,8],[7,0,7,1],[8,0,8,1],[9,0,9,1],[10,0,10,1],[11,0,11,1],[24,0,24,1],[13,0,13,1],[14,0,14,1],[15,0,15,1],[16,0,16,1],[17,0,17,1],[18,0,18,1],[19,0,19,1],[20,0,20,1],[21,0,21,1],[22,0,22,1],[23,0,23,1],[25,0,25,1],[26,0,26,1],[27,0,27,1],[28,0,28,1],[29,0,29,1],[2,4,2,6],[0,0,0,8],[35,5,35,8],[36,5,36,8],[36,1,36,3],[1,2,1,3],[2,2,2,3],[16,5,16,8],[17,5,17,8],[31,5,31,6],[35,2,35,3],[31,2,32,2],[3,4,3,8],[18,5,18,8],[19,5,19,8],[20,5,20,8]]}
["Наименование предприятия"]
["УЛПСиС Ш/О => УЛПСиС",null,"КАРТА ПЛАВКИ",null,"счетчик",null,null,"Печь №",{"$f":"LEFT(I3,1)","v":"3"}]
[{"$f":" \"Дата: \"&TEXT(TODAY(),\"ДД.ММ.ГГГГ\")","v":"Дата: 14.02.2020"},null,"Марка сплава:",null,"список",null,null,"Плавка №",32222]
["Расход металлической шихты",null,null,null,"Время простоев и плавки"]
["Наименование материала",null,"Масса, кг.",null,"Наименование операции","Ч.","М.","Время выдежки","Т, °С"]
[null,null,null,null,"Выпуск предыдущих плавок"]
[null,null,null,null,"Ремонт футеров"]
[null,null,null,null,"Прокалка шихты"]
[null,null,null,null,"Прокалка шлаковой смеси"]
[null,null,null,null,"Прокалка боркалька"]
[null,null,null,null,"Прогрев ферросплавов"]
[null,null,null,null,"Хранение боркалька перед использованием"]
[]
[null,null,null,null,"Отбор пробы на хим состав"]
[null,null,null,null,"Прогрев оснастки"]
[null,null,null,null,"Набор изложниц произвёл ПСРП _____________________________"]
[null,null,null,null,"№","№"]
[null,null,null,null,"№","№"]
[null,null,null,null,"№","№"]
[null,null,null,null,"№","№"]
[null,null,null,null,"№","№"]
[null,null,null,"Время плавки","Завалка"]
[null,null,null,null,"Рафинировка"]
[null,null,null,null,"Выпуск плавки"]
[]
[]
[null,null,null,null,"Продолжительность плавки",null,null,null,"боркальк "]
[null,null,null,null,"Стойкость тигля:","Вид проб."]
["Количество тарных мест:",null,{"$f":"COUNTIF(C6:C28,\">0\")","v":0},"шт.","Состояние тигля:"]
["Итого металлической шихты:",null,{"$f":"SUM(C6:C28)","v":0},"кг.",null,"На ПХА с загибом"]
["Наименование","Диаметр формы, мм.","Масса, кг.","Σ, шт.","Выдержка","Смазка",null,"Засыпка","Время охлаждения в изложницах"]
["Черновой-развес ","список",null,null,null,"Аргон",null,"Экзовставка"]
[null,null,null,null,"Температура металла, °С"]
["Угар",null,null,null,"Перед началом рафинировки"]
["Отходы",null,null,null,"Перед выпуском"]
["Шихтовщик:","/ ___________________________ /","вход",null,"Технолог:","/ ___________________ /Мальков И. А./"]
["Плавильщик:","/ _____________________ / __________________ /",null,null,"Начальник УЛПСиС:","/ ______________________ /Сизов Д. В./"]

{"sheet":"5. Форма прихода ТМЦ на ШО","index":6,"n_rows":30,"n_cols":26,"rows_kept":30,"cut":false,"hidden":false,"merged":[[4,0,4,3],[4,8,4,12],[3,14,3,17],[3,18,3,21],[3,0,3,3],[3,8,3,12],[9,1,9,8],[10,1,10,8],[11,1,11,8],[12,1,12,8],[13,1,13,8],[14,1,14,8],[6,11,6,12],[6,1,6,8],[7,1,7,8],[8,1,8,8],[7,9,7,10],[7,11,7,12],[8,9,8,10],[8,11,8,12],[21,1,21,8],[22,1,22,8],[23,1,23,8],[24,1,24,8],[25,1,25,8],[26,1,26,8],[15,1,15,8],[16,1,16,8],[17,1,17,8],[18,1,18,8],[19,1,19,8],[20,1,20,8],[12,9,12,10],[12,11,12,12],[13,9,13,10],[13,11,13,12],[14,9,14,10],[14,11,14,12],[9,9,9,10],[9,11,9,12],[10,9,10,10],[10,11,10,12],[11,9,11,10],[11,11,11,12],[18,9,18,10],[18,11,18,12],[19,9,19,10],[19,11,19,12],[20,9,20,10],[20,11,20,12],[15,9,15,10],[15,11,15,12],[16,9,16,10],[16,11,16,12],[17,9,17,10],[17,11,17,12],[3,4,3,7],[4,4,4,7],[1,10,1,12],[1,7,1,9],[2,0,2,12],[1,4,1,6],[6,9,6,10],[28,5,28,12],[29,5,29,12],[28,1,28,4],[29,1,29,4],[1,0,1,2],[24,9,24,10],[24,11,24,12],[25,9,25,10],[25,11,25,12],[26,9,26,10],[26,11,26,12],[21,9,21,10],[21,11,21,12],[22,9,22,10],[22,11,22,12],[23,9,23,10],[23,11,23,12],[3,22,3,26],[4,14,4,17],[4,18,4,21],[4,22,4,26],[6,15,6,22],[6,23,6,24],[6,25,6,26],[1,14,1,16],[1,18,1,20],[1,21,1,23],[1,24,1,26],[2,14,2,26],[9,15,9,22],[9,23,9,24],[9,25,9,26],[10,15,10,22],[10,23,10,24],[10,25,10,26],[7,15,7,22],[7,23,7,24],[7,25,7,26],[8,15,8,22],[8,23,8,24],[8,25,8,26],[13,15,13,22],[13,23,13,24],[13,25,13,26],[14,15,14,22],[14,23,14,24],[14,25,14,26],[11,15,11,22],[11,23,11,24],[11,25,11,26],[12,15,12,22],[12,23,12,24],[12,25,12,26],[17,15,17,22],[17,23,17,24],[17,25,17,26],[18,15,18,22],[18,23,18,24],[18,25,18,26],[15,15,15,22],[15,23,15,24],[15,25,15,26],[16,15,16,22],[16,23,16,24],[16,25,16,26],[21,15,21,22],[21,23,21,24],[21,25,21,26],[22,15,22,22],[22,23,22,24],[22,25,22,26],[19,15,19,22],[19,23,19,24],[19,25,19,26],[20,15,20,22],[20,23,20,24],[20,25,20,26],[27,23,27,24],[27,25,27,26],[28,15,28,18],[28,19,28,26],[29,15,29,18],[29,19,29,26],[0,0,0,12],[0,14,0,26],[27,1,27,8],[27,9,27,10],[27,11,27,12],[27,15,27,22],[25,15,25,22],[25,23,25,24],[25,25,25,26],[26,15,26,22],[26,23,26,24],[26,25,26,26],[23,15,23,22],[23,23,23,24],[23,25,23,26],[24,15,24,22],[24,23,24,24],[24,25,24,26]]}
["Наименование предприятия",null,null,null,null,null,null,null,null,null,null,null,null,null,{"$f":"A1","v":"Наименование предприятия"}]
["Накладная",null,null,"№","счетчик",null,null,"дата:",null,null,{"$f":"TEXT(TODAY(),\"ДД.ММ.ГГГГ\")","v":"14.02.2020"},null,null,null,{"$f":"A2","v":"Накладная"},null,null,{"$f":"D2","v":"№"},{"$f":"E2","v":"счетчик"},null,null,{"$f":"H2","v":"дата:"},null,null,{"$f":"K2","v":"14.02.2020"}]
["Приход ТМЦ в шихтовое отделение",null,null,null,null,null,null,null,null,null,null,null,null,null,{"$f":"A3","v":"Приход ТМЦ в шихтовое отделение"}]
[{"$f":"O4","v":"Отправитель"},null,null,null,"Получатель",null,null,null,"Шиховщик / кладовщик",null,null,null,null,null,"Отправитель",null,null,null,{"$f":"E4","v":"Получатель"},null,null,null,{"$f":"I4","v":"Шиховщик / кладовщик"}]
["список",null,null,null,"УЛПСиС Ш/О",null,null,null,"вход",null,null,null,null,null,{"$f":"A5","v":"список"},null,null,null,{"$f":"E5","v":"УЛПСиС Ш/О"},null,null,null,{"$f":"I5","v":"вход"}]
[]
["№","Наименование",null,null,null,null,null,null,null,"m, кг.",null,"Σ, шт.",null,null,{"$f":"A7","v":"№"},{"$f":"B7","v":"Наименование"},null,null,null,null,null,null,null,{"$f":"J7","v":"m, кг."},null,{"$f":"L7","v":"Σ, шт."}]
[1,null,null,null,null,null,null,null,null,null,null,null,null,null,{"$f":"A8","v":1},{"$f":"B8","v":0},null,null,null,null,null,null,null,{"$f":"J8","v":0},null,{"$f":"L8","v":0}]
[2,null,null,null,null,null,null,null,null,null,null,null,null,null,{"$f":"A9","v":2},{"$f":"B9","v":0},null,null,null,null,null,null,null,{"$f":"J9","v":0},null,{"$f":"L9","v":0}]
[3,null,null,null,null,null,null,null,null,null,null,null,null,null,3,0,null,null,null,null,null,null,null,0,null,0]
[4,null,null,null,null,null,null,null,null,null,null,null,null,null,4,0,null,null,null,null,null,null,null,0,null,0]
[5,null,null,null,null,null,null,null,null,null,null,null,null,null,5,0,null,null,null,null,null,null,null,0,null,0]
[6,null,null,null,null,null,null,null,null,null,null,null,null,null,6,0,null,null,null,null,null,null,null,0,null,0]
[7,null,null,null,null,null,null,null,null,null,null,null,null,null,7,0,null,null,null,null,null,null,null,0,null,0]
[8,null,null,null,null,null,null,null,null,null,null,null,null,null,8,0,null,null,null,null,null,null,null,0,null,0]
[9,null,null,null,null,null,null,null,null,null,null,null,null,null,9,0,null,null,null,null,null,null,null,0,null,0]
[10,null,null,null,null,null,null,null,null,null,null,null,null,null,10,0,null,null,null,null,null,null,null,0,null,0]
[11,null,null,null,null,null,null,null,null,null,null,null,null,null,11,0,null,null,null,null,null,null,null,0,null,0]
[12,null,null,null,null,null,null,null,null,null,null,null,null,null,12,0,null,null,null,null,null,null,null,0,null,0]
[13,null,null,null,null,null,null,null,null,null,null,null,null,null,13,0,null,null,null,null,null,null,null,0,null,0]
[14,null,null,null,null,null,null,null,null,null,null,null,null,null,14,0,null,null,null,null,null,null,null,0,null,0]
[15,null,null,null,null,null,null,null,null,null,null,null,null,null,15,0,null,null,null,null,null,null,null,0,null,0]
[16,null,null,null,null,null,null,null,null,null,null,null,null,null,16,0,null,null,null,null,null,null,null,0,null,0]
[17,null,null,null,null,null,null,null,null,null,null,null,null,null,17,0,null,null,null,null,null,null,null,0,null,0]
[18,null,null,null,null,null,null,null,null,null,null,null,null,null,18,0,null,null,null,null,null,null,null,0,null,0]
[19,null,null,null,null,null,null,null,null,null,null,null,null,null,19,0,null,null,null,null,null,null,null,0,null,0]
[20,null,null,null,null,null,null,null,null,null,null,null,null,null,20,0,null,null,null,null,null,null,null,0,null,0]
[null,"Итого:",null,null,null,null,null,null,null,{"$f":"SUM(J8:K27)","v":0},null,{"$f":"SUM(L8:M27)","v":0},null,null,null,{"$f":"B28","v":"Итого:"},null,null,null,null,null,null,null,{"$f":"SUM(X8:Y27)","v":0},null,{"$f":"SUM(Z8:AA27)","v":0}]
[null,"Сдал / отправил:",null,null,null,"_____________________ / _____________________ /",null,null,null,null,null,null,null,null,null,{"$f":"B29","v":"Сдал / отправил:"},null,null,null,{"$f":"F29","v":"_____________________ / _____________________ /"}]
[null,"Принял / получил:",null,null,null,"_____________________ / _____________________ /",null,null,null,null,null,null,null,null,null,{"$f":"B30","v":"Принял / получил:"},null,null,null,{"$f":"F30","v":"_____________________ / _____________________ /"}]

{"sheet":"6. Форма расхода ТМЦ из ШО","index":7,"n_rows":30,"n_cols":26,"rows_kept":30,"cut":false,"hidden":false,"merged":[[2,0,2,12],[2,14,2,26],[3,0,3,3],[3,4,3,7],[3,8,3,12],[3,14,3,17],[3,18,3,21],[3,22,3,26],[0,0,0,12],[0,14,0,26],[1,0,1,2],[1,4,1,6],[1,7,1,9],[1,10,1,12],[1,14,1,16],[1,18,1,20],[1,21,1,23],[1,24,1,26],[6,1,6,8],[6,9,6,10],[6,11,6,12],[6,15,6,22],[6,23,6,24],[6,25,6,26],[4,0,4,3],[4,4,4,7],[4,8,4,12],[4,14,4,17],[4,18,4,21],[4,22,4,26],[8,1,8,8],[8,9,8,10],[8,11,8,12],[8,15,8,22],[8,23,8,24],[8,25,8,26],[7,1,7,8],[7,9,7,10],[7,11,7,12],[7,15,7,22],[7,23,7,24],[7,25,7,26],[10,1,10,8],[10,9,10,10],[10,11,10,12],[10,15,10,22],[10,23,10,24],[10,25,10,26],[9,1,9,8],[9,9,9,10],[9,11,9,12],[9,15,9,22],[9,23,9,24],[9,25,9,26],[12,1,12,8],[12,9,12,10],[12,11,12,12],[12,15,12,22],[12,23,12,24],[12,25,12,26],[11,1,11,8],[11,9,11,10],[11,11,11,12],[11,15,11,22],[11,23,11,24],[11,25,11,26],[14,1,14,8],[14,9,14,10],[14,11,14,12],[14,15,14,22],[14,23,14,24],[14,25,14,26],[13,1,13,8],[13,9,13,10],[13,11,13,12],[13,15,13,22],[13,23,13,24],[13,25,13,26],[16,1,16,8],[16,9,16,10],[16,11,16,12],[16,15,16,22],[16,23,16,24],[16,25,16,26],[15,1,15,8],[15,9,15,10],[15,11,15,12],[15,15,15,22],[15,23,15,24],[15,25,15,26],[18,1,18,8],[18,9,18,10],[18,11,18,12],[18,15,18,22],[18,23,18,24],[18,25,18,26],[17,1,17,8],[17,9,17,10],[17,11,17,12],[17,15,17,22],[17,23,17,24],[17,25,17,26],[20,1,20,8],[20,9,20,10],[20,11,20,12],[20,15,20,22],[20,23,20,24],[20,25,20,26],[19,1,19,8],[19,9,19,10],[19,11,19,12],[19,15,19,22],[19,23,19,24],[19,25,19,26],[22,1,22,8],[22,9,22,10],[22,11,22,12],[22,15,22,22],[22,23,22,24],[22,25,22,26],[21,1,21,8],[21,9,21,10],[21,11,21,12],[21,15,21,22],[21,23,21,24],[21,25,21,26],[24,1,24,8],[24,9,24,10],[24,11,24,12],[24,15,24,22],[24,23,24,24],[24,25,24,26],[23,1,23,8],[23,9,23,10],[23,11,23,12],[23,15,23,22],[23,23,23,24],[23,25,23,26],[26,1,26,8],[26,9,26,10],[26,11,26,12],[26,15,26,22],[26,23,26,24],[26,25,26,26],[25,1,25,8],[25,9,25,10],[25,11,25,12],[25,15,25,22],[25,23,25,24],[25,25,25,26],[28,1,28,4],[28,5,28,12],[28,15,28,18],[28,19,28,26],[29,1,29,4],[29,5,29,12],[29,15,29,18],[29,19,29,26],[27,1,27,8],[27,9,27,10],[27,11,27,12],[27,15,27,22],[27,23,27,24],[27,25,27,26]]}
["Наименование предприятия",null,null,null,null,null,null,null,null,null,null,null,null,null,{"$f":"A1","v":"Наименование предприятия"}]
["Накладная",null,null,"№","счетчик",null,null,"дата:",null,null,{"$f":"TEXT(TODAY(),\"ДД.ММ.ГГГГ\")","v":"14.02.2020"},null,null,null,{"$f":"A2","v":"Накладная"},null,null,{"$f":"D2","v":"№"},{"$f":"E2","v":"счетчик"},null,null,{"$f":"H2","v":"дата:"},null,null,{"$f":"K2","v":"14.02.2020"}]
["Расход ТМЦ из шихтового отделения",null,null,null,null,null,null,null,null,null,null,null,null,null,{"$f":"A3","v":"Расход ТМЦ из шихтового отделения"}]
[{"$f":"O4","v":"Отправитель"},null,null,null,"Получатель",null,null,null,"Шиховщик / кладовщик",null,null,null,null,null,"Отправитель",null,null,null,{"$f":"E4","v":"Получатель"},null,null,null,{"$f":"I4","v":"Шиховщик / кладовщик"}]
["УЛПСиС Ш/О",null,null,null,"список",null,null,null,"вход",null,null,null,null,null,{"$f":"A5","v":"УЛПСиС Ш/О"},null,null,null,{"$f":"E5","v":"список"},null,null,null,{"$f":"I5","v":"вход"}]
[]
["№","Наименование",null,null,null,null,null,null,null,"m, кг.",null,"Σ, шт.",null,null,{"$f":"A7","v":"№"},{"$f":"B7","v":"Наименование"},null,null,null,null,null,null,null,{"$f":"J7","v":"m, кг."},null,{"$f":"L7","v":"Σ, шт."}]
[1,null,null,null,null,null,null,null,null,null,null,null,null,null,{"$f":"A8","v":1},{"$f":"B8","v":0},null,null,null,null,null,null,null,{"$f":"J8","v":0},null,{"$f":"L8","v":0}]
[2,null,null,null,null,null,null,null,null,null,null,null,null,null,{"$f":"A9","v":2},0,null,null,null,null,null,null,null,{"$f":"J9","v":0},null,{"$f":"L9","v":0}]
[3,null,null,null,null,null,null,null,null,null,null,null,null,null,3,0,null,null,null,null,null,null,null,0,null,0]
[4,null,null,null,null,null,null,null,null,null,null,null,null,null,4,0,null,null,null,null,null,null,null,0,null,0]
[5,null,null,null,null,null,null,null,null,null,null,null,null,null,5,0,null,null,null,null,null,null,null,0,null,0]
[6,null,null,null,null,null,null,null,null,null,null,null,null,null,6,0,null,null,null,null,null,null,null,0,null,0]
[7,null,null,null,null,null,null,null,null,null,null,null,null,null,7,0,null,null,null,null,null,null,null,0,null,0]
[8,null,null,null,null,null,null,null,null,null,null,null,null,null,8,0,null,null,null,null,null,null,null,0,null,0]
[9,null,null,null,null,null,null,null,null,null,null,null,null,null,9,0,null,null,null,null,null,null,null,0,null,0]
[10,null,null,null,null,null,null,null,null,null,null,null,null,null,10,0,null,null,null,null,null,null,null,0,null,0]
[11,null,null,null,null,null,null,null,null,null,null,null,null,null,11,0,null,null,null,null,null,null,null,0,null,0]
[12,null,null,null,null,null,null,null,null,null,null,null,null,null,12,0,null,null,null,null,null,null,null,0,null,0]
[13,null,null,null,null,null,null,null,null,null,null,null,null,null,13,0,null,null,null,null,null,null,null,0,null,0]
[14,null,null,null,null,null,null,null,null,null,null,null,null,null,14,0,null,null,null,null,null,null,null,0,null,0]
[15,null,null,null,null,null,null,null,null,null,null,null,null,null,15,0,null,null,null,null,null,null,null,0,null,0]
[16,null,null,null,null,null,null,null,null,null,null,null,null,null,16,0,null,null,null,null,null,null,null,0,null,0]
[17,null,null,null,null,null,null,null,null,null,null,null,null,null,17,0,null,null,null,null,null,null,null,0,null,0]
[18,null,null,null,null,null,null,null,null,null,null,null,null,null,18,0,null,null,null,null,null,null,null,0,null,0]
[19,null,null,null,null,null,null,null,null,null,null,null,null,null,19,0,null,null,null,null,null,null,null,0,null,0]
[20,null,null,null,null,null,null,null,null,null,null,null,null,null,20,0,null,null,null,null,null,null,null,0,null,0]
[null,"Итого:",null,null,null,null,null,null,null,{"$f":"SUM(J8:K27)","v":0},null,{"$f":"SUM(L8:M27)","v":0},null,null,null,{"$f":"B28","v":"Итого:"},null,null,null,null,null,null,null,{"$f":"SUM(X8:Y27)","v":0},null,{"$f":"SUM(Z8:AA27)","v":0}]
[null,"Сдал / отправил:",null,null,null,"_____________________ / _____________________ /",null,null,null,null,null,null,null,null,null,{"$f":"B29","v":"Сдал / отправил:"},null,null,null,{"$f":"F29","v":"_____________________ / _____________________ /"}]
[null,"Принял / получил:",null,null,null,"_____________________ / _____________________ /",null,null,null,null,null,null,null,null,null,{"$f":"B30","v":"Принял / получил:"},null,null,null,{"$f":"F30","v":"_____________________ / _____________________ /"}]

{"sheet":"7. Форма акта о списании с ШО","index":8,"n_rows":30,"n_cols":26,"rows_kept":30,"cut":false,"hidden":false,"merged":[[2,0,2,12],[2,14,2,26],[3,0,3,3],[3,4,3,7],[3,8,3,12],[3,14,3,17],[3,18,3,21],[3,22,3,26],[0,0,0,12],[0,14,0,26],[1,0,1,2],[1,4,1,6],[1,7,1,9],[1,10,1,12],[1,14,1,16],[1,18,1,20],[1,21,1,23],[1,24,1,26],[6,1,6,8],[6,9,6,10],[6,11,6,12],[6,15,6,22],[6,23,6,24],[6,25,6,26],[4,0,4,3],[4,4,4,7],[4,8,4,12],[4,14,4,17],[4,18,4,21],[4,22,4,26],[8,1,8,8],[8,9,8,10],[8,11,8,12],[8,15,8,22],[8,23,8,24],[8,25,8,26],[7,1,7,8],[7,9,7,10],[7,11,7,12],[7,15,7,22],[7,23,7,24],[7,25,7,26],[10,1,10,8],[10,9,10,10],[10,11,10,12],[10,15,10,22],[10,23,10,24],[10,25,10,26],[9,1,9,8],[9,9,9,10],[9,11,9,12],[9,15,9,22],[9,23,9,24],[9,25,9,26],[12,1,12,8],[12,9,12,10],[12,11,12,12],[12,15,12,22],[12,23,12,24],[12,25,12,26],[11,1,11,8],[11,9,11,10],[11,11,11,12],[11,15,11,22],[11,23,11,24],[11,25,11,26],[14,1,14,8],[14,9,14,10],[14,11,14,12],[14,15,14,22],[14,23,14,24],[14,25,14,26],[13,1,13,8],[13,9,13,10],[13,11,13,12],[13,15,13,22],[13,23,13,24],[13,25,13,26],[16,1,16,8],[16,9,16,10],[16,11,16,12],[16,15,16,22],[16,23,16,24],[16,25,16,26],[15,1,15,8],[15,9,15,10],[15,11,15,12],[15,15,15,22],[15,23,15,24],[15,25,15,26],[18,1,18,8],[18,9,18,10],[18,11,18,12],[18,15,18,22],[18,23,18,24],[18,25,18,26],[17,1,17,8],[17,9,17,10],[17,11,17,12],[17,15,17,22],[17,23,17,24],[17,25,17,26],[20,1,20,8],[20,9,20,10],[20,11,20,12],[20,15,20,22],[20,23,20,24],[20,25,20,26],[19,1,19,8],[19,9,19,10],[19,11,19,12],[19,15,19,22],[19,23,19,24],[19,25,19,26],[22,1,22,8],[22,9,22,10],[22,11,22,12],[22,15,22,22],[22,23,22,24],[22,25,22,26],[21,1,21,8],[21,9,21,10],[21,11,21,12],[21,15,21,22],[21,23,21,24],[21,25,21,26],[24,1,24,8],[24,9,24,10],[24,11,24,12],[24,15,24,22],[24,23,24,24],[24,25,24,26],[23,1,23,8],[23,9,23,10],[23,11,23,12],[23,15,23,22],[23,23,23,24],[23,25,23,26],[26,1,26,8],[26,9,26,10],[26,11,26,12],[26,15,26,22],[26,23,26,24],[26,25,26,26],[25,1,25,8],[25,9,25,10],[25,11,25,12],[25,15,25,22],[25,23,25,24],[25,25,25,26],[28,1,28,4],[28,5,28,12],[28,15,28,18],[28,19,28,26],[29,1,29,4],[29,5,29,12],[29,15,29,18],[29,19,29,26],[27,1,27,8],[27,9,27,10],[27,11,27,12],[27,15,27,22],[27,23,27,24],[27,25,27,26]]}
["Наименование предприятия",null,null,null,null,null,null,null,null,null,null,null,null,null,{"$f":"A1","v":"Наименование предприятия"}]
["АКТ о списании",null,null,"№","счетчик",null,null,"дата:",null,null,{"$f":"TEXT(TODAY(),\"ДД.ММ.ГГГГ\")","v":"14.02.2020"},null,null,null,{"$f":"A2","v":"АКТ о списании"},null,null,{"$f":"D2","v":"№"},{"$f":"E2","v":"счетчик"},null,null,{"$f":"H2","v":"дата:"},null,null,{"$f":"K2","v":"14.02.2020"}]
["спискок",null,null,null,null,null,null,null,null,null,null,null,null,null,{"$f":"A3","v":"спискок"}]
[{"$f":"O4","v":"Отправитель"},null,null,null,"Получатель",null,null,null,"Шиховщик / кладовщик",null,null,null,null,null,"Отправитель",null,null,null,{"$f":"E4","v":"Получатель"},null,null,null,{"$f":"I4","v":"Шиховщик / кладовщик"}]
["УЛПСиС Ш/О",null,null,null,"список",null,null,null,"вход",null,null,null,null,null,{"$f":"A5","v":"УЛПСиС Ш/О"},null,null,null,{"$f":"E5","v":"список"},null,null,null,{"$f":"I5","v":"вход"}]
[]
["№","Наименование",null,null,null,null,null,null,null,"m, кг.",null,"Σ, шт.",null,null,{"$f":"A7","v":"№"},{"$f":"B7","v":"Наименование"},null,null,null,null,null,null,null,{"$f":"J7","v":"m, кг."},null,{"$f":"L7","v":"Σ, шт."}]
[1,null,null,null,null,null,null,null,null,null,null,null,null,null,{"$f":"A8","v":1},{"$f":"B8","v":0},null,null,null,null,null,null,null,{"$f":"J8","v":0},null,{"$f":"L8","v":0}]
[2,null,null,null,null,null,null,null,null,null,null,null,null,null,{"$f":"A9","v":2},0,null,null,null,null,null,null,null,{"$f":"J9","v":0},null,{"$f":"L9","v":0}]
[3,null,null,null,null,null,null,null,null,null,null,null,null,null,3,0,null,null,null,null,null,null,null,0,null,0]
[4,null,null,null,null,null,null,null,null,null,null,null,null,null,4,0,null,null,null,null,null,null,null,0,null,0]
[5,null,null,null,null,null,null,null,null,null,null,null,null,null,5,0,null,null,null,null,null,null,null,0,null,0]
[6,null,null,null,null,null,null,null,null,null,null,null,null,null,6,0,null,null,null,null,null,null,null,0,null,0]
[7,null,null,null,null,null,null,null,null,null,null,null,null,null,7,0,null,null,null,null,null,null,null,0,null,0]
[8,null,null,null,null,null,null,null,null,null,null,null,null,null,8,0,null,null,null,null,null,null,null,0,null,0]
[9,null,null,null,null,null,null,null,null,null,null,null,null,null,9,0,null,null,null,null,null,null,null,0,null,0]
[10,null,null,null,null,null,null,null,null,null,null,null,null,null,10,0,null,null,null,null,null,null,null,0,null,0]
[11,null,null,null,null,null,null,null,null,null,null,null,null,null,11,0,null,null,null,null,null,null,null,0,null,0]
[12,null,null,null,null,null,null,null,null,null,null,null,null,null,12,0,null,null,null,null,null,null,null,0,null,0]
[13,null,null,null,null,null,null,null,null,null,null,null,null,null,13,0,null,null,null,null,null,null,null,0,null,0]
[14,null,null,null,null,null,null,null,null,null,null,null,null,null,14,0,null,null,null,null,null,null,null,0,null,0]
[15,null,null,null,null,null,null,null,null,null,null,null,null,null,15,0,null,null,null,null,null,null,null,0,null,0]
[16,null,null,null,null,null,null,null,null,null,null,null,null,null,16,0,null,null,null,null,null,null,null,0,null,0]
[17,null,null,null,null,null,null,null,null,null,null,null,null,null,17,0,null,null,null,null,null,null,null,0,null,0]
[18,null,null,null,null,null,null,null,null,null,null,null,null,null,18,0,null,null,null,null,null,null,null,0,null,0]
[19,null,null,null,null,null,null,null,null,null,null,null,null,null,19,0,null,null,null,null,null,null,null,0,null,0]
[20,null,null,null,null,null,null,null,null,null,null,null,null,null,20,0,null,null,null,null,null,null,null,0,null,0]
[null,"Итого:",null,null,null,null,null,null,null,{"$f":"SUM(J8:K27)","v":0},null,{"$f":"SUM(L8:M27)","v":0},null,null,null,{"$f":"B28","v":"Итого:"},null,null,null,null,null,null,null,{"$f":"SUM(X8:Y27)","v":0},null,{"$f":"SUM(Z8:AA27)","v":0}]
[null,"Сдал / отправил:",null,null,null,"_____________________ / _____________________ /",null,null,null,null,null,null,null,null,null,{"$f":"B29","v":"Сдал / отправил:"},null,null,null,{"$f":"F29","v":"_____________________ / _____________________ /"}]
[null,"Принял / получил:",null,null,null,"_____________________ / _____________________ /",null,null,null,null,null,null,null,null,null,{"$f":"B30","v":"Принял / получил:"},null,null,null,{"$f":"F30","v":"_____________________ / _____________________ /"}]

{"sheet":"8. Форма акта о приходе на ШО","index":9,"n_rows":30,"n_cols":26,"rows_kept":30,"cut":false,"hidden":false,"merged":[[2,0,2,12],[2,14,2,26],[3,0,3,3],[3,4,3,7],[3,8,3,12],[3,14,3,17],[3,18,3,21],[3,22,3,26],[0,0,0,12],[0,14,0,26],[1,0,1,2],[1,4,1,6],[1,7,1,9],[1,10,1,12],[1,14,1,16],[1,18,1,20],[1,21,1,23],[1,24,1,26],[6,1,6,8],[6,9,6,10],[6,11,6,12],[6,15,6,22],[6,23,6,24],[6,25,6,26],[4,0,4,3],[4,4,4,7],[4,8,4,12],[4,14,4,17],[4,18,4,21],[4,22,4,26],[8,1,8,8],[8,9,8,10],[8,11,8,12],[8,15,8,22],[8,23,8,24],[8,25,8,26],[7,1,7,8],[7,9,7,10],[7,11,7,12],[7,15,7,22],[7,23,7,24],[7,25,7,26],[10,1,10,8],[10,9,10,10],[10,11,10,12],[10,15,10,22],[10,23,10,24],[10,25,10,26],[9,1,9,8],[9,9,9,10],[9,11,9,12],[9,15,9,22],[9,23,9,24],[9,25,9,26],[12,1,12,8],[12,9,12,10],[12,11,12,12],[12,15,12,22],[12,23,12,24],[12,25,12,26],[11,1,11,8],[11,9,11,10],[11,11,11,12],[11,15,11,22],[11,23,11,24],[11,25,11,26],[14,1,14,8],[14,9,14,10],[14,11,14,12],[14,15,14,22],[14,23,14,24],[14,25,14,26],[13,1,13,8],[13,9,13,10],[13,11,13,12],[13,15,13,22],[13,23,13,24],[13,25,13,26],[16,1,16,8],[16,9,16,10],[16,11,16,12],[16,15,16,22],[16,23,16,24],[16,25,16,26],[15,1,15,8],[15,9,15,10],[15,11,15,12],[15,15,15,22],[15,23,15,24],[15,25,15,26],[18,1,18,8],[18,9,18,10],[18,11,18,12],[18,15,18,22],[18,23,18,24],[18,25,18,26],[17,1,17,8],[17,9,17,10],[17,11,17,12],[17,15,17,22],[17,23,17,24],[17,25,17,26],[20,1,20,8],[20,9,20,10],[20,11,20,12],[20,15,20,22],[20,23,20,24],[20,25,20,26],[19,1,19,8],[19,9,19,10],[19,11,19,12],[19,15,19,22],[19,23,19,24],[19,25,19,26],[22,1,22,8],[22,9,22,10],[22,11,22,12],[22,15,22,22],[22,23,22,24],[22,25,22,26],[21,1,21,8],[21,9,21,10],[21,11,21,12],[21,15,21,22],[21,23,21,24],[21,25,21,26],[24,1,24,8],[24,9,24,10],[24,11,24,12],[24,15,24,22],[24,23,24,24],[24,25,24,26],[23,1,23,8],[23,9,23,10],[23,11,23,12],[23,15,23,22],[23,23,23,24],[23,25,23,26],[26,1,26,8],[26,9,26,10],[26,11,26,12],[26,15,26,22],[26,23,26,24],[26,25,26,26],[25,1,25,8],[25,9,25,10],[25,11,25,12],[25,15,25,22],[25,23,25,24],[25,25,25,26],[28,1,28,4],[28,5,28,12],[28,15,28,18],[28,19,28,26],[29,1,29,4],[29,5,29,12],[29,15,29,18],[29,19,29,26],[27,1,27,8],[27,9,27,10],[27,11,27,12],[27,15,27,22],[27,23,27,24],[27,25,27,26]]}
["Наименование предприятия",null,null,null,null,null,null,null,null,null,null,null,null,null,{"$f":"A1","v":"Наименование предприятия"}]
["АКТ о приходе",null,null,"№","счетчик",null,null,"дата:",null,null,{"$f":"TEXT(TODAY(),\"ДД.ММ.ГГГГ\")","v":"14.02.2020"},null,null,null,{"$f":"A2","v":"АКТ о приходе"},null,null,{"$f":"D2","v":"№"},{"$f":"E2","v":"счетчик"},null,null,{"$f":"H2","v":"дата:"},null,null,{"$f":"K2","v":"14.02.2020"}]
["спискок",null,null,null,null,null,null,null,null,null,null,null,null,null,{"$f":"A3","v":"спискок"}]
[{"$f":"O4","v":"Отправитель"},null,null,null,"Получатель",null,null,null,"Шиховщик / кладовщик",null,null,null,null,null,"Отправитель",null,null,null,{"$f":"E4","v":"Получатель"},null,null,null,{"$f":"I4","v":"Шиховщик / кладовщик"}]
["список",null,null,null,"УЛПСиС Ш/О",null,null,null,"вход",null,null,null,null,null,{"$f":"A5","v":"список"},null,null,null,{"$f":"E5","v":"УЛПСиС Ш/О"},null,null,null,{"$f":"I5","v":"вход"}]
[]
["№","Наименование",null,null,null,null,null,null,null,"m, кг.",null,"Σ, шт.",null,null,{"$f":"A7","v":"№"},{"$f":"B7","v":"Наименование"},null,null,null,null,null,null,null,{"$f":"J7","v":"m, кг."},null,{"$f":"L7","v":"Σ, шт."}]
[1,null,null,null,null,null,null,null,null,null,null,null,null,null,{"$f":"A8","v":1},{"$f":"B8","v":0},null,null,null,null,null,null,null,{"$f":"J8","v":0},null,{"$f":"L8","v":0}]
[2,null,null,null,null,null,null,null,null,null,null,null,null,null,{"$f":"A9","v":2},0,null,null,null,null,null,null,null,{"$f":"J9","v":0},null,{"$f":"L9","v":0}]
[3,null,null,null,null,null,null,null,null,null,null,null,null,null,3,0,null,null,null,null,null,null,null,0,null,0]
[4,null,null,null,null,null,null,null,null,null,null,null,null,null,4,0,null,null,null,null,null,null,null,0,null,0]
[5,null,null,null,null,null,null,null,null,null,null,null,null,null,5,0,null,null,null,null,null,null,null,0,null,0]
[6,null,null,null,null,null,null,null,null,null,null,null,null,null,6,0,null,null,null,null,null,null,null,0,null,0]
[7,null,null,null,null,null,null,null,null,null,null,null,null,null,7,0,null,null,null,null,null,null,null,0,null,0]
[8,null,null,null,null,null,null,null,null,null,null,null,null,null,8,0,null,null,null,null,null,null,null,0,null,0]
[9,null,null,null,null,null,null,null,null,null,null,null,null,null,9,0,null,null,null,null,null,null,null,0,null,0]
[10,null,null,null,null,null,null,null,null,null,null,null,null,null,10,0,null,null,null,null,null,null,null,0,null,0]
[11,null,null,null,null,null,null,null,null,null,null,null,null,null,11,0,null,null,null,null,null,null,null,0,null,0]
[12,null,null,null,null,null,null,null,null,null,null,null,null,null,12,0,null,null,null,null,null,null,null,0,null,0]
[13,null,null,null,null,null,null,null,null,null,null,null,null,null,13,0,null,null,null,null,null,null,null,0,null,0]
[14,null,null,null,null,null,null,null,null,null,null,null,null,null,14,0,null,null,null,null,null,null,null,0,null,0]
[15,null,null,null,null,null,null,null,null,null,null,null,null,null,15,0,null,null,null,null,null,null,null,0,null,0]
[16,null,null,null,null,null,null,null,null,null,null,null,null,null,16,0,null,null,null,null,null,null,null,0,null,0]
[17,null,null,null,null,null,null,null,null,null,null,null,null,null,17,0,null,null,null,null,null,null,null,0,null,0]
[18,null,null,null,null,null,null,null,null,null,null,null,null,null,18,0,null,null,null,null,null,null,null,0,null,0]
[19,null,null,null,null,null,null,null,null,null,null,null,null,null,19,0,null,null,null,null,null,null,null,0,null,0]
[20,null,null,null,null,null,null,null,null,null,null,null,null,null,20,0,null,null,null,null,null,null,null,0,null,0]
[null,"Итого:",null,null,null,null,null,null,null,{"$f":"SUM(J8:K27)","v":0},null,{"$f":"SUM(L8:M27)","v":0},null,null,null,{"$f":"B28","v":"Итого:"},null,null,null,null,null,null,null,{"$f":"SUM(X8:Y27)","v":0},null,{"$f":"SUM(Z8:AA27)","v":0}]
[null,"Сдал / отправил:",null,null,null,"_____________________ / _____________________ /",null,null,null,null,null,null,null,null,null,{"$f":"B29","v":"Сдал / отправил:"},null,null,null,{"$f":"F29","v":"_____________________ / _____________________ /"}]
[null,"Принял / получил:",null,null,null,"_____________________ / _____________________ /",null,null,null,null,null,null,null,null,null,{"$f":"B30","v":"Принял / получил:"},null,null,null,{"$f":"F30","v":"_____________________ / _____________________ /"}]